bitfinex/quotes_SOLUSD_20240705
["timestamp","ask_amount","ask_price","bid_price","bid_amount"]
[1720164867537,34.0851,125.52,125.37,15.1963]
[1720164867848,0.17,125.51,125.38,100.0]
[1720164868037,44.09,125.51,125.37,15.1963]
[1720164868218,44.09,125.51,125.38,100.0]
[1720164868428,10.1651,125.5,125.36,6.2971]
[1720164868723,0.17,125.49,125.36,106.2971]
[1720164869537,0.17,125.49,125.36,112.58050197]
[1720164869728,0.17,125.49,125.37,20.0]
[1720164869923,0.17,125.49,125.39,100.0]
[1720164870114,0.17,125.49,125.4,20.0]
[1720164870643,0.17,125.49,125.38,20.0]
[1720164870816,24.09,125.49,125.34,8.54693029]
[1720164871016,10.1651,125.47,125.34,0.04727483]
[1720164871217,0.17,125.46,125.35,100.0]
[1720164871739,0.17,125.46,125.37,100.0]
[1720164872226,0.17,125.46,125.38,20.0]
[1720164872647,10.1651,125.47,125.39,100.0]
[1720164872827,10.1651,125.47,125.41,100.0]
[1720164873038,10.1651,125.47,125.42,20.0]
[1720164873520,10.1651,125.52,125.43,100.0]
[1720164874136,10.1651,125.52,125.42,20.0]
[1720164874347,10.1651,125.52,125.41,100.0]
[1720164874559,10.1651,125.52,125.42,20.0]
[1720164874913,0.17,125.51,125.42,20.0]
[1720164875246,0.17,125.51,125.4,20.0]
[1720164876326,0.17,125.51,125.41,100.0]
[1720164876526,0.17,125.51,125.42,20.0]
[1720164877154,34.0851,125.5,125.37,6.26501146]
[1720164877443,0.17,125.49,125.35,141.25]
[1720164877819,10.1651,125.48,125.35,141.25]
[1720164878018,0.17,125.47,125.35,141.25]
[1720164878437,0.17,125.47,125.36,20.0]
[1720164880245,0.17,125.47,125.34,0.04727483]
[1720164880431,0.17,125.47,125.34,0.21727483]
[1720164881415,0.17,125.47,125.34,20.21727483]
[1720164881644,10.1651,125.44,125.34,0.04727483]
[1720164881854,0.17,125.43,125.34,0.04727483]
[1720164882019,10.1651,125.42,125.34,0.04727483]
[1720164882424,44.09,125.41,125.31,0.1]
[1720164882624,43.92,125.41,125.31,0.1]
[1720164882837,0.17,125.4,125.31,0.1]
[1720164883737,34.0378,125.39,125.31,0.1]
[1720164883916,0.17,125.38,125.31,0.1]
[1720164891052,10.1178,125.37,125.31,0.1]
[1720164891241,0.17,125.36,125.31,0.1]
[1720164896241,10.1178,125.37,125.31,0.1]
[1720164897063,34.0378,125.37,125.31,0.1]
[1720164897255,31.8977,125.35,125.28,0.8644209]
[1720164897444,23.92,125.35,125.21,0.1]
[1720164897644,23.92,125.33,125.21,0.1]
[1720164897948,0.17,125.32,125.21,0.1]
[1720164898446,10.1178,125.31,125.21,0.1]
[1720164898637,0.17,125.3,125.21,20.1]
[1720164898845,0.17,125.3,125.21,0.1]
[1720164900167,10.1178,125.31,125.22,100.0]
[1720164900356,10.1178,125.31,125.23,20.0]
[1720164900561,10.1178,125.31,125.24,100.0]
[1720164900855,10.1178,125.34,125.24,100.0]
[1720164901058,10.1178,125.34,125.25,20.0]
[1720164901744,34.0378,125.32,125.21,0.1]
[1720164901945,10.1178,125.32,125.21,0.1]
[1720164902369,10.1178,125.32,125.21,100.1]
[1720164903260,10.1178,125.32,125.23,100.0]
[1720164903842,10.1178,125.32,125.24,20.0]
[1720164904467,10.1178,125.32,125.23,100.0]
[1720164904675,10.1178,125.32,125.24,20.0]
[1720164904876,10.1178,125.32,125.21,0.1]
[1720164904877,34.0378,125.32,125.21,0.1]
[1720164905163,10.1178,125.32,125.21,0.1]
[1720164905374,0.17,125.31,125.21,0.1]
[1720164906842,20.17,125.31,125.21,0.1]
[1720164907041,6.52544147,125.34,125.21,0.1]
[1720164907042,10.1178,125.3,125.21,0.1]
[1720164908379,0.17,125.29,125.21,0.1]
[1720164909177,10.1178,125.3,125.21,0.1]
[1720164909377,0.17,125.29,125.21,0.1]
[1720164909570,10.1178,125.3,125.21,0.1]
[1720164910473,0.17,125.29,125.21,0.1]
[1720164911344,10.1178,125.3,125.21,100.1]
[1720164912069,10.1178,125.3,125.22,20.0]
[1720164912776,18.37531366,125.34,125.23,100.0]
[1720164912984,18.37531366,125.34,125.24,20.0]
[1720164913275,10.1178,125.34,125.24,20.0]
[1720164913662,10.1178,125.34,125.22,20.0]
[1720164914172,0.17,125.33,125.22,20.0]
[1720164914883,0.17,125.33,125.21,0.27]
[1720164915175,0.17,125.33,125.21,100.27]
[1720164915392,0.17,125.33,125.22,20.0]
[1720164915674,10.1178,125.34,125.23,100.0]
[1720164915867,10.1178,125.34,125.23,136.75]
[1720164916283,10.1178,125.34,125.27,36.75]
[1720164917053,10.1178,125.38,125.28,20.0]
[1720164917253,10.1178,125.38,125.29,136.75]
[1720164917883,10.1178,125.38,125.29,100.0]
[1720164918464,10.1178,125.38,125.3,20.0]
[1720164919787,10.1178,125.38,125.31,100.0]
[1720164920390,10.1178,125.43,125.32,0.17]
[1720164920554,10.1178,125.43,125.32,20.0]
[1720164920949,34.0378,125.43,125.26,112.90116295]
[1720164921150,34.0378,125.43,125.28,100.0]
[1720164921371,23.92,125.41,125.29,20.0]
[1720164921574,10.1178,125.42,125.29,20.0]
[1720164921780,0.17,125.41,125.29,20.0]
[1720164921959,10.1178,125.4,125.24,141.3]
[1720164922158,34.0378,125.38,125.22,376.5967]
[1720164922377,0.17,125.37,125.22,276.5967]
[1720164922580,34.0378,125.36,125.22,261.3372]
[1720164922787,0.17,125.35,125.22,255.3]
[1720164924566,10.1178,125.34,125.22,255.3]
[1720164924767,0.17,125.33,125.22,255.3]
[1720164926885,0.17,125.33,125.21,0.1]
[1720164927089,0.17,125.33,125.21,20.27]
[1720164927768,10.1178,125.34,125.22,100.0]
[1720164927967,10.1178,125.34,125.23,20.0]
[1720164928396,10.1178,125.34,125.24,100.0]
[1720164929264,10.1178,125.34,125.25,0.17]
[1720164931294,10.1178,125.34,125.26,100.0]
[1720164931599,10.1178,125.34,125.25,0.17]
[1720164931781,10.1178,125.34,125.25,20.17]
[1720164932775,10.1178,125.34,125.25,20.0]
[1720164934074,10.1178,125.34,125.26,100.0]
[1720164934487,10.1178,125.34,125.27,20.0]
[1720164935668,10.1178,125.34,125.23,100.0]
[1720164935877,10.1178,125.34,125.21,100.1]
[1720164936175,10.1178,125.34,125.23,100.0]
[1720164936388,10.1178,125.34,125.21,6.46389641]
[1720164936389,10.1178,125.34,125.25,100.0]
[1720164937097,10.1178,125.34,125.26,20.0]
[1720164937593,10.1178,125.34,125.27,100.0]
[1720164937905,10.1178,125.34,125.28,36.72]
[1720164938193,10.1178,125.34,125.29,100.0]
[1720164938976,10.1178,125.39,125.31,36.72]
[1720164939191,10.1178,125.39,125.31,136.72]
[1720164939381,10.1178,125.39,125.28,44.702]
[1720164939382,10.1178,125.39,125.33,136.72]
[1720164940492,10.1178,125.44,125.35,136.72]
[1720164940797,46.8378,125.44,125.32,36.72]
[1720164940983,8.27684703,125.43,125.3,136.72]
[1720164941500,8.27684703,125.43,125.32,36.72]
[1720164941675,8.27684703,125.43,125.28,136.72]
[1720164941676,10.1178,125.42,125.3,36.72]
[1720164941996,10.2878,125.41,125.28,100.0]
[1720164942192,10.2878,125.41,125.29,20.0]
[1720164943893,10.2878,125.41,125.27,20.0]
[1720164944404,10.1178,125.41,125.28,108.1521]
[1720164944698,10.1178,125.41,125.29,20.0]
[1720164944882,10.1178,125.41,125.3,100.17]
[1720164945574,10.1178,125.41,125.32,100.0]
[1720164947800,10.1178,125.41,125.34,100.0]
[1720164948295,10.1178,125.41,125.3,100.0]
[1720164948601,10.1178,125.41,125.32,100.0]
[1720164948780,10.1178,125.41,125.34,100.0]
[1720164949995,10.1178,125.41,125.32,100.0]
[1720164950299,10.1178,125.41,125.31,20.0]
[1720164950300,0.17,125.4,125.29,41.3]
[1720164950507,23.97,125.39,125.26,6.52409324]
[1720164950692,23.97,125.37,125.21,0.1]
[1720164950873,23.97,125.35,125.21,0.1]
[1720164951073,0.17,125.34,125.21,0.1]
[1720164951498,0.17,125.34,125.21,100.1]
[1720164951695,0.17,125.35,125.21,100.1]
[1720164952396,0.17,125.35,125.21,0.1]
[1720164953183,0.17,125.35,125.22,100.0]
[1720164953573,0.17,125.35,125.21,0.1]
[1720164953773,0.17,125.35,125.21,0.27]
[1720164954478,0.17,125.35,125.22,100.0]
[1720164955276,0.17,125.35,125.23,20.17]
[1720164955628,10.1178,125.36,125.25,100.0]
[1720164957074,10.1178,125.36,125.27,100.0]
[1720164957902,10.1178,125.36,125.26,0.17]
[1720164958102,10.1178,125.36,125.26,100.0]
[1720164958301,10.1178,125.36,125.27,20.17]
[1720164959484,10.1178,125.36,125.25,20.0]
[1720164959712,10.1178,125.36,125.25,120.0]
[1720164960291,10.1178,125.36,125.26,0.17]
[1720164961303,10.1178,125.36,125.24,41.3]
[1720164961509,10.1178,125.36,125.25,20.17]
[1720164962101,10.1178,125.36,125.25,20.0]
[1720164962294,0.17,125.35,125.22,20.0]
[1720164962495,0.17,125.35,125.23,0.17]
[1720164962713,0.17,125.35,125.23,100.17]
[1720164962918,0.17,125.35,125.24,20.0]
[1720164964219,10.1178,125.36,125.24,20.0]
[1720164964431,10.1178,125.36,125.25,100.17]
[1720164965303,10.1178,125.36,125.24,20.0]
[1720164965505,0.17,125.35,125.24,20.0]
[1720164966104,0.17,125.35,125.26,100.0]
[1720164966712,0.17,125.35,125.24,20.0]
[1720164967312,0.17,125.35,125.25,100.0]
[1720164967719,10.1178,125.36,125.26,0.17]
[1720164968535,10.1178,125.36,125.25,100.0]
[1720164968713,0.17,125.35,125.25,100.0]
[1720164969324,18.39758004,125.36,125.25,100.0]
[1720164969512,18.39758004,125.36,125.27,100.0]
[1720164969714,10.1178,125.36,125.27,100.0]
[1720164969917,10.1178,125.36,125.29,100.0]
[1720164970215,10.1178,125.36,125.26,126.2544]
[1720164970537,10.1178,125.36,125.28,100.0]
[1720164971130,10.1178,125.36,125.3,100.0]
[1720164971337,10.1178,125.36,125.31,0.17]
[1720164971641,4.06238747,125.49,125.31,0.17]
[1720164971642,10.1178,125.43,125.31,0.17]
[1720164972128,10.1178,125.42,125.29,20.0]
[1720164972633,10.1178,125.42,125.29,100.0]
[1720164972834,0.17,125.41,125.29,100.0]
[1720164973244,0.17,125.41,125.3,0.17]
[1720164974031,0.17,125.41,125.3,20.17]
[1720164975108,0.17,125.41,125.3,0.17]
[1720164975306,0.17,125.41,125.31,100.0]
[1720164975807,10.1178,125.42,125.32,20.17]
[1720164976922,10.1178,125.42,125.33,100.0]
[1720164977131,10.1178,125.42,125.35,100.0]
[1720164977429,10.1178,125.42,125.36,0.17]
[1720164977636,10.1178,125.42,125.36,20.17]
[1720164978444,10.1178,125.48,125.37,100.0]
[1720164978653,10.1178,125.48,125.38,20.0]
[1720164979860,10.1178,125.48,125.33,106.1442]
[1720164980025,10.1178,125.48,125.34,20.17]
[1720164980440,0.17,125.47,125.37,100.0]
[1720164980640,0.17,125.47,125.38,0.17]
[1720164981234,0.17,125.47,125.37,100.0]
[1720164981438,0.17,125.47,125.36,0.17]
[1720164981750,0.17,125.47,125.36,20.0]
[1720164983255,10.1178,125.48,125.37,100.17]
[1720164983425,10.1178,125.48,125.38,20.0]
[1720164983624,10.1178,125.48,125.39,0.17]
[1720164984242,10.1178,125.48,125.38,20.0]
[1720164984426,10.1178,125.48,125.37,100.0]
[1720164984625,10.1178,125.48,125.38,20.17]
[1720164985863,10.1178,125.48,125.39,100.0]
[1720164986157,10.1178,125.48,125.4,0.17]
[1720164986541,10.1178,125.48,125.4,20.17]
[1720164987657,10.1178,125.48,125.4,20.0]
[1720164987855,10.1178,125.48,125.39,100.0]
[1720164987856,0.17,125.47,125.37,100.0]
[1720164988040,0.17,125.47,125.38,20.0]
[1720164988633,0.17,125.47,125.34,147.82]
[1720164988634,0.17,125.47,125.34,100.0]
[1720164989043,10.1178,125.46,125.34,100.0]
[1720164989534,10.1178,125.46,125.36,100.0]
[1720164989736,10.1178,125.46,125.37,36.67]
[1720164990544,10.1178,125.46,125.39,36.67]
[1720164991956,10.1178,125.46,125.4,100.17]
[1720164992163,10.1178,125.46,125.41,36.67]
[1720164995441,10.1178,125.46,125.42,120.17]
[1720164995752,10.1178,125.46,125.42,20.17]
[1720164995960,10.1178,125.46,125.42,20.0]
[1720164996258,10.1178,125.46,125.42,120.0]
[1720164997065,10.1178,125.51,125.42,120.0]
[1720164997940,10.1178,125.51,125.43,0.17]
[1720164998165,10.1178,125.51,125.42,120.0]
[1720164998742,10.1178,125.51,125.33,21.30822609]
[1720164998743,36.67,125.49,125.35,100.0]
[1720164999069,10.2878,125.48,125.37,100.0]
[1720165002673,10.1178,125.46,125.34,36.67]
[1720165002872,10.1178,125.44,125.34,36.67]
[1720165003200,10.1178,125.44,125.33,100.0]
[1720165003201,0.17,125.43,125.33,100.0]
[1720165004974,0.17,125.43,125.34,0.17]
[1720165005172,10.1178,125.44,125.34,0.17]
[1720165005371,10.1178,125.44,125.34,36.84]
[1720165006183,0.17,125.43,125.34,36.84]
[1720165007164,10.1178,125.44,125.34,36.84]
[1720165007470,10.1178,125.44,125.36,100.0]
[1720165007673,10.1178,125.44,125.36,136.67]
[1720165007869,10.1178,125.44,125.38,136.67]
[1720165008074,10.1178,125.44,125.39,0.17]
[1720165008382,10.1178,125.44,125.38,36.67]
[1720165008859,10.1178,125.44,125.39,100.17]
[1720165009277,10.1178,125.44,125.38,36.67]
[1720165009480,10.1178,125.44,125.39,0.17]
[1720165010384,10.1178,125.44,125.39,100.17]
[1720165012101,10.1178,125.44,125.39,0.17]
[1720165014292,10.1178,125.44,125.38,36.67]
[1720165014595,10.1178,125.44,125.35,56.67]
[1720165014802,10.1178,125.44,125.36,100.0]
[1720165015092,10.1178,125.44,125.37,20.0]
[1720165016169,10.1178,125.44,125.36,20.0]
[1720165016371,10.1178,125.44,125.36,120.0]
[1720165016580,10.1178,125.44,125.37,0.17]
[1720165020086,10.1178,125.44,125.38,100.0]
[1720165020289,10.1178,125.44,125.37,36.84]
[1720165020290,10.1178,125.44,125.4,100.0]
[1720165020597,10.1178,125.44,125.39,36.84]
[1720165020781,10.1178,125.44,125.39,0.17]
[1720165021995,10.1178,125.5,125.4,100.0]
[1720165022196,10.1178,125.5,125.39,0.17]
[1720165022502,10.1178,125.5,125.39,20.17]
[1720165023284,0.17,125.49,125.39,20.17]
[1720165023481,0.17,125.49,125.4,100.0]
[1720165023682,10.1178,125.5,125.41,0.17]
[1720165025398,10.1178,125.5,125.39,20.0]
[1720165025577,0.17,125.49,125.39,20.0]
[1720165026291,0.17,125.49,125.4,0.17]
[1720165026877,10.1178,125.5,125.4,0.17]
[1720165027095,0.17,125.49,125.4,0.17]
[1720165027680,0.17,125.49,125.39,20.0]
[1720165028480,0.17,125.49,125.4,0.17]
[1720165028879,0.17,125.49,125.4,100.17]
[1720165029094,0.17,125.49,125.4,0.17]
[1720165029401,0.17,125.49,125.39,20.0]
[1720165029787,0.17,125.49,125.4,0.17]
[1720165030716,10.1178,125.5,125.4,100.17]
[1720165030997,10.1178,125.5,125.42,100.0]
[1720165031201,10.1178,125.5,125.45,100.0]
[1720165031591,10.1178,125.5,125.43,36.84]
[1720165031592,10.1178,125.5,125.43,136.84]
[1720165031790,10.1178,125.5,125.44,20.0]
[1720165032398,10.1178,125.5,125.43,20.17]
[1720165032596,10.1178,125.5,125.43,20.0]
[1720165032978,10.1178,125.5,125.42,36.67]
[1720165033184,10.1178,125.5,125.38,6.3024]
[1720165033185,10.1178,125.5,125.38,100.0]
[1720165033407,0.17,125.49,125.39,56.84]
[1720165033707,0.17,125.49,125.4,100.0]
[1720165033900,0.17,125.49,125.41,20.0]
[1720165035093,10.1178,125.5,125.41,56.67]
[1720165035301,10.1178,125.5,125.42,100.17]
[1720165036107,10.1178,125.5,125.42,0.17]
[1720165036714,10.1178,125.5,125.41,20.0]
[1720165037812,0.17,125.49,125.4,36.84]
[1720165038993,10.1178,125.5,125.41,0.17]
[1720165039603,10.1178,125.5,125.4,36.67]
[1720165039803,0.17,125.49,125.4,36.67]
[1720165040184,0.17,125.49,125.41,0.17]
[1720165040386,10.1178,125.5,125.41,0.17]
[1720165041612,10.1178,125.5,125.37,36.67]
[1720165041914,0.17,125.49,125.38,20.0]
[1720165042088,10.1178,125.48,125.37,36.67]
[1720165042289,0.17,125.47,125.36,106.4992675]
[1720165042703,0.17,125.47,125.37,36.67]
[1720165043406,10.1178,125.46,125.35,36.67]
[1720165043612,0.17,125.45,125.34,391.97]
[1720165043792,0.17,125.45,125.34,136.67]
[1720165043992,0.17,125.45,125.34,143.0889081]
[1720165045093,0.17,125.45,125.35,20.17]
[1720165045723,0.17,125.45,125.35,56.84]
[1720165046086,0.17,125.45,125.35,20.17]
[1720165046292,0.17,125.45,125.35,56.84]
[1720165047015,0.17,125.45,125.35,20.17]
[1720165047406,10.1178,125.44,125.35,20.0]
[1720165047612,10.1178,125.44,125.33,20.0]
[1720165047912,0.17,125.43,125.33,120.0]
[1720165048291,10.1178,125.42,125.33,20.0]
[1720165048606,10.1178,125.42,125.34,100.0]
[1720165049288,10.1178,125.42,125.32,100.0]
[1720165049491,10.1178,125.42,125.33,20.0]
[1720165050404,10.1178,125.42,125.31,20.0]
[1720165050592,0.17,125.41,125.31,20.0]
[1720165051417,0.17,125.41,125.32,100.0]
[1720165051635,10.1178,125.42,125.34,100.0]
[1720165051791,10.1178,125.42,125.35,0.17]
[1720165052827,10.1178,125.42,125.36,136.67]
[1720165053028,10.1178,125.42,125.37,0.17]
[1720165055196,10.1178,125.42,125.36,100.0]
[1720165055406,10.1178,125.42,125.37,0.17]
[1720165055592,10.1178,125.42,125.38,100.0]
[1720165055799,10.1178,125.48,125.38,100.0]
[1720165055996,0.17,125.47,125.38,100.0]
[1720165056400,0.17,125.47,125.37,0.17]
[1720165056598,0.17,125.47,125.37,20.17]
[1720165057011,0.17,125.47,125.38,100.0]
[1720165057398,0.17,125.47,125.37,20.17]
[1720165057595,0.17,125.47,125.38,100.0]
[1720165057922,10.1178,125.48,125.38,100.0]
[1720165057923,10.1178,125.48,125.4,100.0]
[1720165058292,10.1178,125.48,125.41,100.0]
[1720165058593,10.1178,125.48,125.37,20.0]
[1720165058907,10.1178,125.48,125.38,0.17]
[1720165059103,10.1178,125.48,125.38,136.84]
[1720165059627,10.1178,125.48,125.4,100.0]
[1720165059795,10.1178,125.48,125.41,0.17]
[1720165060127,10.1178,125.48,125.42,100.0]
[1720165060297,10.1178,125.48,125.42,136.67]
[1720165061321,10.1178,125.52,125.44,100.0]
[1720165061530,10.1178,125.52,125.44,136.67]
[1720165061727,10.1178,125.52,125.44,36.67]
[1720165061902,10.1178,125.52,125.44,136.67]
[1720165062614,10.1178,125.52,125.44,36.67]
[1720165062806,10.1178,125.52,125.4,136.67]
[1720165063014,10.1178,125.52,125.41,0.17]
[1720165063825,0.17,125.51,125.42,100.0]
[1720165064419,10.1178,125.52,125.44,36.67]
[1720165064629,10.1178,125.52,125.44,136.67]
[1720165064818,10.1178,125.52,125.44,36.67]
[1720165067724,10.1178,125.52,125.42,36.67]
[1720165067915,0.17,125.51,125.42,136.67]
[1720165068108,10.1178,125.52,125.42,136.67]
[1720165069337,0.17,125.51,125.42,136.67]
[1720165069532,0.17,125.51,125.42,100.0]
[1720165070639,10.1178,125.52,125.43,36.67]
[1720165070837,10.1178,125.52,125.44,0.17]
[1720165071014,10.1178,125.52,125.46,100.0]
[1720165071215,10.1178,125.52,125.45,36.67]
[1720165072838,10.1178,125.52,125.43,36.67]
[1720165073636,10.1178,125.52,125.44,100.0]
[1720165074139,10.1178,125.52,125.46,36.67]
[1720165074440,10.1178,125.52,125.46,136.67]
[1720165075355,10.1178,125.52,125.47,0.17]
[1720165075926,10.1178,125.52,125.46,100.0]
[1720165076925,10.1178,125.52,125.45,36.84]
[1720165076926,10.1178,125.52,125.49,100.0]
[1720165077141,10.1178,125.56,125.49,136.67]
[1720165077745,10.1178,125.56,125.5,0.17]
[1720165078953,10.1178,125.56,125.51,100.0]
[1720165079145,10.1178,125.56,125.52,0.17]
[1720165080449,10.1178,125.56,125.51,136.67]
[1720165081234,10.1178,125.56,125.51,36.67]
[1720165081553,10.1178,125.56,125.51,136.67]
[1720165081733,10.1178,125.56,125.52,0.17]
[1720165082131,10.1178,125.59,125.52,0.17]
[1720165082349,10.1178,125.59,125.53,136.67]
[1720165082674,10.1178,125.59,125.5,36.67]
[1720165082835,10.1178,125.59,125.46,136.67]
[1720165083158,10.1178,125.55,125.44,36.67]
[1720165083542,10.1178,125.53,125.42,36.67]
[1720165083854,10.2878,125.52,125.42,36.67]
[1720165084029,10.2878,125.52,125.39,106.44881024]
[1720165084030,60.81,125.52,125.4,36.67]
[1720165084355,10.1178,125.5,125.38,36.67]
[1720165084541,0.17,125.49,125.38,36.67]
[1720165084944,10.1178,125.5,125.39,100.0]
[1720165085146,10.1178,125.5,125.41,100.0]
[1720165085967,10.1178,125.5,125.42,36.67]
[1720165086837,10.1178,125.5,125.43,28.0736]
[1720165087052,10.1178,125.58,125.46,36.67]
[1720165087250,10.1178,125.57,125.46,36.67]
[1720165087740,10.1178,125.57,125.47,0.17]
[1720165088437,0.17,125.56,125.47,0.17]
[1720165090167,0.17,125.56,125.48,100.0]
[1720165090456,10.1178,125.57,125.48,136.67]
[1720165090656,10.1178,125.57,125.49,0.17]
[1720165090861,10.1178,125.57,125.48,36.67]
[1720165091066,10.1178,125.57,125.46,36.67]
[1720165091386,10.1178,125.57,125.48,36.67]
[1720165092063,10.1178,125.57,125.49,120.0]
[1720165092363,10.1178,125.57,125.5,0.17]
[1720165092544,10.1178,125.57,125.49,120.0]
[1720165093056,10.1178,125.57,125.51,100.0]
[1720165094559,10.1178,125.57,125.5,36.84]
[1720165094756,10.1178,125.57,125.49,20.0]
[1720165095363,10.1178,125.57,125.51,100.0]
[1720165096655,0.8644209,125.6,125.56,36.67]
[1720165097164,0.8644209,125.6,125.54,36.67]
[1720165097369,0.8644209,125.6,125.55,20.17]
[1720165097767,0.8644209,125.6,125.56,100.0]
[1720165101243,0.8644209,125.6,125.56,136.67]
[1720165101470,0.8644209,125.6,125.58,36.67]
[1720165101665,0.8644209,125.6,125.58,136.67]
[1720165102346,10.1178,125.66,125.58,136.67]
[1720165102673,10.1178,125.66,125.59,20.0]
[1720165104768,10.1178,125.66,125.55,100.0]
[1720165105073,10.1178,125.66,125.56,20.0]
[1720165105647,10.1178,125.66,125.55,136.67]
[1720165106369,10.1178,125.66,125.56,0.17]
[1720165106582,10.1178,125.64,125.51,378.83531192]
[1720165106867,0.17,125.63,125.52,36.67]
[1720165107053,0.17,125.63,125.53,100.0]
[1720165108174,0.17,125.63,125.54,20.17]
[1720165109348,10.1178,125.64,125.54,20.17]
[1720165109551,10.1178,125.64,125.55,100.0]
[1720165110051,10.1178,125.64,125.56,0.17]
[1720165110357,10.1178,125.64,125.51,6.46289919]
[1720165110555,10.1178,125.64,125.52,56.67]
[1720165110772,10.1178,125.64,125.53,100.0]
[1720165111075,10.1178,125.64,125.54,56.67]
[1720165111260,0.17,125.63,125.54,56.67]
[1720165114053,0.17,125.63,125.54,20.0]
[1720165114402,0.17,125.63,125.53,20.0]
[1720165114991,0.17,125.63,125.52,36.67]
[1720165115671,0.17,125.63,125.53,0.17]
[1720165116278,0.17,125.63,125.52,136.67]
[1720165118278,0.17,125.63,125.52,36.67]
[1720165118883,10.1178,125.62,125.52,36.67]
[1720165119080,0.17,125.61,125.52,36.67]
[1720165124575,0.17,125.61,125.52,136.67]
[1720165125473,10.1178,125.62,125.54,36.67]
[1720165127396,10.1178,125.62,125.56,36.67]
[1720165127578,10.1178,125.66,125.6,36.67]
[1720165127757,10.1178,125.66,125.61,0.17]
[1720165128188,10.1178,125.66,125.6,136.67]
[1720165129404,10.1178,125.66,125.61,0.17]
[1720165129890,10.1178,125.66,125.6,136.67]
[1720165130896,10.1178,125.66,125.61,20.0]
[1720165135772,10.1178,125.66,125.62,36.67]
[1720165138776,10.1178,125.7,125.62,36.67]
[1720165139197,10.1178,125.7,125.62,136.67]
[1720165140273,10.1178,125.7,125.64,36.67]
[1720165144103,10.1178,125.7,125.61,20.0]
[1720165144279,0.17,125.69,125.61,20.0]
[1720165144609,10.1178,125.7,125.61,20.0]
[1720165144775,0.17,125.69,125.61,20.0]
[1720165145702,0.17,125.69,125.6,136.67]
[1720165145907,0.17,125.69,125.6,36.67]
[1720165146491,0.17,125.69,125.6,136.67]
[1720165146687,10.1178,125.7,125.6,136.67]
[1720165146901,10.1178,125.7,125.61,0.17]
[1720165147206,10.1178,125.7,125.61,20.17]
[1720165147704,10.1178,125.7,125.61,20.0]
[1720165147892,0.17,125.69,125.61,20.0]